Workbook

Sheet Sheet1
A1: 2019级面向社会人员电子商务专业教学进程表
A2: 附表一
A3: 课程 类别 | C3: 序号 | E3: 学分 | F3: 课 时 数 | I3: 理论实训教学周课时 | O3: 考试考核 | Q3: 备注
F4: 总 计 | G4: 其 中 | I4: 第一学年 | K4: 第二学年 | M4: 第三学年 | O4: 考 试 | P4: 考 查
G5: 理论 | H5: 实践 | I5: 第一学期 | J5: 第二学期 | K5: 第三学期 | L5: 第四学期 | M5: 第五学期 | N5: 第六学期
I6: 16周 | J6: 18周 | K6: 18周 | L6: 18周 | M6: 18周 | N6: 16周
A7: 职业思想道德 | B7: 必修课 | C7: 1-1 | D7: 思想道德修养与法律基础 | E7: 3 | F7: 48 | G7: 24 | H7: 24 | I7: 3 | O7: √
C8: 1-2 | D8: 职业生涯规划 | E8: 1 | F8: 16 | G8: 8 | H8: 8 | I8: 1 | P8: √
C9: 1-3 | D9: 形势与政策 | E9: 1 | F9: 16 | G9: 8 | H9: 8 | I9: 1
C10: 1-4 | D10: 毛泽东思想和中国特色社会主义理论体系概论 | E10: 4 | F10: 72 | G10: 36 | H10: 36 | J10: 4 | O10: √
C11: 1-5 | D11: 军事理论 | E11: 2 | F11: 32 | G11: 32 | I11: 2 | P11: √
C12: 1-6 | D12: 心理健康教育 | E12: 2 | F12: 32 | G12: 32 | I12: √ | Q12: 在线课程
C13: 1-7 | D13: 就业指导 | E13: 1 | F13: 18 | G13: 18 | L13: 1 | P13: √
C14: 1-8 | D14: 财贸素养教育 | E14: 1 | F14: 18 | H14: 18 | K14: 1 | Q14: 实践教学
C15: 1-9 | D15: 职业基本素养 | E15: 2 | F15: 36 | G15: 36 | J15: √ | Q15: 在线课程
C16: 1-10 | D16: 大学生美育教育 | E16: 2 | F16: 32 | G16: 32 | I16: √ | Q16: 在线课程
C17: 1-11 | D17: 创新创业基础 | E17: 2 | F17: 36 | G17: 36 | J17: √ | Q17: 在线课程
C18: 1-12 | D18: 社会责任 | E18: 4 | F18: 70 | H18: 70 | I18: √ | J18: √ | K18: √ | L18: √ | Q18: 实践教学
B19: 合计 | C19: 合 计 | E19: =SUM(E7:E18) -> 25 | F19: =SUM(F7:F18) -> 426 | G19: =SUM(G7:G18) -> 262 | H19: =SUM(H7:H18) -> 164
A20: 职业基础知识与能力 | B20: 必修课 | C20: 2-1 | D20: 体育与健康 | E20: 6 | F20: 104 | G20: 18 | H20: 86 | I20: 2 | J20: 2 | K20: 2 | O20: √
C21: 2-2 | D21: 基础会计 | E21: 4 | F21: 64 | G21: 48 | H21: 16 | I21: 4 | P21: √
C22: 2-3 | D22: 电子商务概论 | E22: 4 | F22: 64 | G22: 32 | H22: 32 | I22: 4 | O22: √
C23: 2-4 | D23: 计算机应用基础 | E23: 4 | F23: 64 | G23: 32 | H23: 32 | I23: 4 | P23: √
C24: 2-5 | D24: 市场营销 | E24: 4 | F24: 64 | G24: 36 | H24: 28 | J24: 4 | O24: √
C25: 2-6 | D25: 公共关系 | E25: 4 | F25: 64 | G25: 46 | H25: 18 | K25: 4 | O25: √
C26: 2-7 | D26: 国际商法 | E26: 4 | F26: 64 | G26: 50 | H26: 14 | K26: 4 | O26: √
C27: 2-8 | D27: 商务礼仪 | E27: 4 | F27: 64 | G27: 36 | H27: 28 | J27: 4 | P27: √
C28: 2-9 | D28: 经济学基础 | E28: 4 | F28: 64 | G28: 60 | H28: 4 | I28: 4 | O28: √
C29: 小 计 | E29: =SUM(E21:E28) -> 32 | F29: =SUM(F21:F28) -> 512 | G29: =SUM(G21:G28) -> 340 | H29: =SUM(H21:H28) -> 172
B30: 限选课 | C30: 2-9 | D30: 网络广告实务 | E30: 4 | F30: 64 | G30: 36 | H30: 28 | L30: 4 | P30: √ | Q30: 二选一
C31: 2-10 | D31: 商品摄影技术 | F31: 48 | G31: 40 | H31: 8
C32: 小 计 | E32: =SUM(E30) -> 4 | F32: =SUM(F30) -> 64 | G32: =SUM(G30) -> 36 | H32: =SUM(H30) -> 28
B33: 合 计 | C33: 合 计 | E33: =E29+E32 -> 36 | F33: =F29+F32 -> 576 | G33: =G29+G32 -> 376 | H33: =H29+H32 -> 200
A34: 职业知识与能力 | B34: 必修课 | C34: 3-1 | D34: 电子商务客服 | E34: 4 | F34: 64 | G34: 32 | H34: 32 | J34: 4 | P34: √
C35: 3-2 | D35: 网络营销 | E35: 4 | F35: 64 | G35: 40 | H35: 24 | K35: 4 | O35: √
C36: 3-3 | D36: 电子商务物流 | E36: 4 | F36: 64 | G36: 46 | H36: 18 | K36: 4 | P36: √
C37: 3-4 | D37: 网店初级美工 | E37: 4 | F37: 64 | G37: 24 | H37: 40 | I37: 4 | P37: √
C38: 3-5 | D38: 数据库应用 | E38: 4 | F38: 64 | G38: 36 | H38: 28 | K38: 4 | P38: √
C39: 3-6 | D39: 网络信息编辑 | E39: 4 | F39: 64 | G39: 36 | H39: 28 | L39: 4 | P39: √
C40: 3-7 | D40: 商务网页设计 | E40: 4 | F40: 64 | G40: 34 | H40: 30 | J40: 4 | O40: √
C41: 3-8 | D41: 移动商务 | E41: 4 | F41: 64 | G41: 34 | H41: 30 | L41: 4 | O41: √
C42: 3-9 | D42: 电子商务安全与支付 | E42: 4 | F42: 64 | G42: 44 | H42: 20 | L42: 4 | O42: √
C43: 3-10 | D43: 国际贸易实务 | E43: 4 | F43: 64 | G43: 30 | H43: 34 | K43: 4 | P43: √
C44: 3-11 | D44: 网店高级美工 | E44: 4 | F44: 64 | G44: 32 | H44: 32 | L44: 4 | P44: √
C45: 3-12 | D45: 网店运营与推广 | E45: 4 | F45: 64 | G45: 34 | H45: 30 | L45: 4 | O45: √
C46: 小 计 | E46: =SUM(E34:E45) -> 48 | F46: =SUM(F34:F45) -> 768 | G46: =SUM(G34:G45) -> 422 | H46: =SUM(H34:H45) -> 346
B47: 限选课 | C47: 3-13 | D47: 电商文案创作 | E47: 4 | F47: 64 | G47: 32 | H47: 32 | J47: 4 | P47: √ | Q47: 二选一
C48: 3-14 | D48: 商务客户端设计
C49: 小 计 | E49: =SUM(E47:E48) -> 4 | F49: =SUM(F47:F48) -> 64 | G49: =SUM(G47:G48) -> 32 | H49: =SUM(H47:H48) -> 32
B50: 合 计 | C50: 合 计 | E50: =E46+E49 -> 52 | F50: =F46+F49 -> 832 | G50: =G46+G49 -> 454 | H50: =H46+H49 -> 378
A51: 2019级面向社会人员电子商务专业教学进程表
A52: 附表一(续)
A53: 课程 类别 | C53: 序号 | E53: 学分 | F53: 课 时 数 | I53: 理论实训教学周课时 | O53: 考试考核 | Q53: 备注
F54: 总 计 | G54: 其 中 | I54: 第一学年 | K54: 第二学年 | M54: 第三学年 | O54: 考 试 | P54: 考 查
G55: 理论 | H55: 实践 | I55: 第一学期 | J55: 第二学期 | K55: 第三学期 | L55: 第四学期 | M55: 第五学期 | N55: 第六学期
I56: 16周 | J56: 18周 | K56: 18周 | L56: 18周 | M56: 16周 | N56: 16周
A57: 综合技能 | B57: 选修课 | C57: 4-1 | D57: 成功学 | E57: 2 | F57: 36 | G57: 18 | H57: 18 | Q57: 线上课程；第3、4学期分别任选1门课，每门课2学分，共计计4学分
C58: 4-2 | D58: 大学生团体心理训练 | E58: 2 | F58: 36 | G58: 18 | H58: 18
C59: 4-3 | D59: 大学生意外伤害与急救 | E59: 2 | F59: 36 | G59: 18 | H59: 18
C60: 4-4 | D60: 国学今用 | E60: 2 | F60: 36 | G60: 18 | H60: 18
C61: 4-5 | D61: 徽商与徽文化 | E61: 2 | F61: 36 | G61: 18 | H61: 18
C62: 4-6 | D62: 商务礼仪 | E62: 2 | F62: 36 | G62: 18 | H62: 18
C63: 4-7 | D63: 摄影 | E63: 2 | F63: 36 | G63: 18 | H63: 18
C64: 4-8 | D64: 围棋文化与原理 | E64: 2 | F64: 36 | G64: 18 | H64: 18
C65: 4-9 | D65: 心理学与生活 | E65: 2 | F65: 36 | G65: 18 | H65: 18
C66: 4-10 | D66: 艺术欣赏 | E66: 2 | F66: 36 | G66: 18 | H66: 18
C67: 4-11 | D67: 音乐 | E67: 2 | F67: 36 | G67: 18 | H67: 18
C68: 4-12 | D68: 营销与策划 | E68: 2 | F68: 36 | G68: 18 | H68: 18
C69: 4-13 | D69: 营养与保健学 | E69: 2 | F69: 36 | G69: 18 | H69: 18
C70: 小 计 | E70: 4 | F70: 72 | G70: 36 | H70: 36
B71: 必修课 | C71: 5-1 | D71: 企业跟岗实训 | E71: 20 | F71: 320 | G71: 0 | H71: 320 | M71: 16周
C72: 5-2 | D72: 顶岗实习 | E72: 10 | F72: 160 | G72: 0 | H72: 160 | N72: 8周
C73: 5-3 | D73: 毕业实习报告 | E73: 10 | F73: 160 | G73: 0 | H73: 160 | N73: 8周
B74: 合计 | C74: 合 计 | E74: =SUM(E71:E73) -> 40 | F74: =SUM(F71:F73) -> 640 | G74: =SUM(G71:G73) -> 0 | H74: =SUM(H71:H73) -> 640
A75: 总计 | E75: =E74+E50+E33+E19 -> 153 | F75: =F74+F50+F70+F33+F19 -> 2546 | G75: =G74+G70+G50+G33+G19 -> 1128 | H75: =H74+H70+H50+H33+H19 -> 1418 | I75: =SUM(I7:I74) -> 29 | J75: =SUM(J7:J74) -> 26 | K75: =SUM(K7:K74) -> 27 | L75: =SUM(L7:L74) -> 25
A77: 2019级面向社会人员电子商务专业教学进程表
C79: 附表二 | E79: 面向社会人员电子商务专业各教学环节总课时分配表
C81: 项目 | F81: 课时数 | I81: 百分比 | L81: 备注
C82: 职业思想道德 | F82: =F19 -> 426 | I82: =F82/F86 -> 16.73%
C83: 职业基础知识与能力 | F83: =F33 -> 576 | I83: =F83/F86 -> 22.62%
C84: 职业知识与能力 | F84: =F50 -> 832 | I84: =F84/F86 -> 32.68%
C85: 综合技能 | F85: 712 | I85: =F85/F86 -> 27.97%
C86: 合计 | F86: =SUM(F82:H85) -> 2546 | I86: 100.00%
C88: 必修课 | F88: =F19+F29+F46+F74+F70 -> 2418 | I88: =F88/F90 -> 94.97%
C89: 限选课 | F89: =F49+F32 -> 128 | I89: =F89/F90 -> 5.03%
C90: 合计 | F90: =SUM(F88:H89) -> 2546 | I90: 100.00%
C92: 附表三 | E92: 面向社会人员电子商务专业理论课与实训课课时分配表
C94: 项目 | E94: 总课时数 | I94: 百分比 | L94: 备注
C95: 理论课时 | E95: =G75 -> 1128 | I95: =E95/E97 -> 44.30%
C96: 实训课时 | E96: =H75 -> 1418 | I96: =E96/E97 -> 55.70%
C97: 合计 | E97: =SUM(E95:E96) -> 2546 | I97: =E97/E97 -> 100.00%
